bitfinex/quotes_BTCUSD_20250623
["timestamp","ask_amount","ask_price","bid_price","bid_amount"]
[1750653052827,0.342,101470.0,101460.0,0.06567]
[1750653053036,0.04404,101470.0,101460.0,0.06567]
[1750653054183,0.04404,101470.0,101460.0,0.35449245]
[1750653054416,0.04404,101470.0,101460.0,0.38998415]
[1750653055100,0.04404,101470.0,101460.0,0.35449245]
[1750653055514,0.04404,101470.0,101460.0,0.06567]
[1750653056068,0.04404,101470.0,101460.0,0.0881766]
[1750653058098,0.002,101470.0,101460.0,0.0881766]
[1750653058255,0.04404,101470.0,101460.0,0.0881766]
[1750653059416,0.04404,101470.0,101460.0,0.37699905]
[1750653060784,0.002,101470.0,101460.0,0.3915399]
[1750653060978,0.04404,101470.0,101460.0,0.3915399]
[1750653062551,0.04404,101470.0,101460.0,0.61119598]
[1750653063179,0.04404,101470.0,101460.0,0.5512999]
[1750653070044,0.04404,101470.0,101460.0,0.22543]
[1750653074998,0.04404,101470.0,101460.0,0.5287933]
[1750653075200,0.044,101470.0,101460.0,0.5287933]
[1750653077832,0.044,101470.0,101460.0,0.23997085]
[1750653078886,0.044,101470.0,101460.0,0.5287933]
[1750653079093,0.044,101470.0,101460.0,0.60660212]
[1750653079513,0.044,101470.0,101460.0,0.60656212]
[1750653079717,0.044,101470.0,101460.0,0.5287533]
[1750653080132,0.044,101470.0,101460.0,0.3690333]
[1750653080339,0.044,101470.0,101460.0,0.5287533]
[1750653081153,0.044,101470.0,101460.0,0.08021085]
[1750653081366,0.044,101470.0,101460.0,0.5287533]
[1750653082128,0.044,101470.0,101460.0,0.23993085]
[1750653082355,0.044,101470.0,101460.0,0.5287533]
[1750653083057,0.044,101470.0,101460.0,0.23993085]
[1750653084443,0.0824,101470.0,101460.0,0.06567]
[1750653084647,0.37122245,101470.0,101460.0,0.0333]
[1750653084943,0.0824,101470.0,101460.0,0.0333]
[1750653085160,0.0824,101470.0,101460.0,0.03451]
[1750653085372,0.044,101470.0,101460.0,0.06731]
[1750653086370,0.33291436,101470.0,101460.0,0.06731]
[1750653087221,0.044,101470.0,101460.0,0.06731]
[1750653088044,0.044,101470.0,101460.0,0.35622436]
[1750653088207,0.044,101470.0,101460.0,0.06731]
[1750653090129,0.042,101470.0,101460.0,0.06731]
[1750653099567,0.042,101470.0,101460.0,0.41001854]
[1750653099772,0.042,101470.0,101460.0,0.35620829]
[1750653100392,0.042,101470.0,101460.0,0.06731]
[1750653100805,0.33089829,101470.0,101460.0,0.0333]
[1750653100949,0.33089829,101470.0,101460.0,0.06591]
[1750653101359,0.042,101470.0,101460.0,0.06591]
[1750653102678,0.0592,101470.0,101460.0,0.001]
[1750653102924,0.47183004,101470.0,101460.0,0.001]
[1750653103646,0.43119768,101470.0,101460.0,0.001]
[1750653104117,0.46083468,101470.0,101460.0,0.001]
[1750653104623,0.47803468,101470.0,101460.0,0.001]
[1750653105839,0.63775468,101470.0,101460.0,0.001]
[1750653106303,0.62055468,101470.0,101460.0,0.001]
[1750653106989,0.62055468,101470.0,101460.0,0.0327]
[1750653107198,0.36053529,101470.0,101460.0,0.0327]
[1750653107617,0.36053529,101470.0,101460.0,0.06397]
[1750653108007,0.071637,101470.0,101460.0,0.0628]
[1750653108216,0.029637,101470.0,101460.0,0.06397]
[1750653108425,0.071637,101470.0,101460.0,0.06397]
[1750653109054,0.36053529,101470.0,101460.0,0.06397]
[1750653109889,0.071637,101470.0,101460.0,0.06397]
[1750653111258,0.071637,101470.0,101460.0,0.0628]
[1750653111464,0.071637,101470.0,101460.0,0.06397]
[1750653112934,0.50866548,101470.0,101460.0,0.001]
[1750653113141,0.52586548,101470.0,101460.0,0.001]
[1750653113804,0.86586548,101470.0,101460.0,0.001]
[1750653117832,0.80083468,101470.0,101460.0,0.001]
[1750653119399,0.68148768,101470.0,101460.0,0.001]
[1750653119790,0.71112768,101470.0,101460.0,0.001]
[1750653120428,0.71112768,101470.0,101460.0,0.0331]
[1750653121624,0.71112768,101470.0,101460.0,0.001]
[1750653121839,0.80493245,101470.0,101460.0,0.001]
[1750653125097,1.04185245,101470.0,101460.0,0.001]
[1750653126309,0.94804768,101470.0,101460.0,0.0324]
[1750653128565,0.94804768,101470.0,101460.0,0.001]
[1750653128975,0.96524768,101470.0,101460.0,0.001]
[1750653131624,0.96524768,101470.0,101450.0,0.0316246]
[1750653131827,0.44857829,101460.0,101450.0,0.0316246]
[1750653132050,0.54887768,101460.0,101450.0,0.0637246]
[1750653132261,0.57851868,101460.0,101450.0,0.0637246]
[1750653132633,0.67881807,101460.0,101450.0,0.0637246]
[1750653134401,0.67881807,101460.0,101450.0,0.0647246]
[1750653136616,0.67881807,101460.0,101450.0,0.0014246]
[1750653137788,0.67881807,101460.0,101450.0,0.0004246]
[1750653138019,0.67981807,101460.0,101450.0,0.0004246]
[1750653138506,1.30871636,101460.0,101450.0,0.0004246]
[1750653138726,1.32591636,101460.0,101450.0,0.0004246]
[1750653139398,1.02181807,101460.0,101450.0,0.0320246]
[1750653139646,0.92151868,101460.0,101450.0,0.0320246]
[1750653140768,0.63262039,101460.0,101450.0,0.0320246]
[1750653140999,0.92151868,101460.0,101450.0,0.0320246]
[1750653141225,1.14820024,101460.0,101450.0,0.0004246]
[1750653141438,1.24849963,101460.0,101450.0,0.0004246]
[1750653144403,1.23129963,101460.0,101450.0,0.0004246]
[1750653146334,1.24849963,101460.0,101450.0,0.0004246]
[1750653146538,1.30835485,101460.0,101450.0,0.0004246]
[1750653146749,1.29849963,101460.0,101450.0,0.0004246]
[1750653147754,1.30773599,101460.0,101450.0,0.0004246]
[1750653148285,1.29849963,101460.0,101450.0,0.0004246]
[1750653148521,1.24849963,101460.0,101450.0,0.0004246]
[1750653148753,1.30573604,101460.0,101450.0,0.0004246]
[1750653148971,1.29949963,101460.0,101450.0,0.0004246]
[1750653149403,1.32844394,101460.0,101450.0,0.0004246]
[1750653149616,1.35576721,101460.0,101450.0,0.0004246]
[1750653149832,1.27231534,101460.0,101450.0,0.0004246]
[1750653150048,1.29510954,101460.0,101450.0,0.0004246]
[1750653150273,1.28910954,101460.0,101450.0,0.0004246]
[1750653150486,1.29510954,101460.0,101450.0,0.0004246]
[1750653150895,1.29896588,101460.0,101450.0,0.0004246]
[1750653151103,1.30496588,101460.0,101450.0,0.0004246]
[1750653151735,1.31950673,101460.0,101450.0,0.0004246]
[1750653151940,1.58048484,101460.0,101450.0,0.0004246]
[1750653152357,1.40314378,101460.0,101450.0,0.0004246]
[1750653152569,1.40899978,101460.0,101450.0,0.0004246]
[1750653152796,1.41199978,101460.0,101450.0,0.0004246]
[1750653153513,1.60912247,101460.0,101450.0,0.0004246]
[1750653153745,1.40214436,101460.0,101450.0,0.0004246]
[1750653155143,1.35214436,101460.0,101450.0,0.0004246]
[1750653155371,1.40214436,101460.0,101450.0,0.0004246]
[1750653156700,1.39228836,101460.0,101450.0,0.0004246]
[1750653157131,1.39224418,101460.0,101450.0,0.0004246]
[1750653157356,1.38624418,101460.0,101450.0,0.0004246]
[1750653157570,1.38324418,101460.0,101450.0,0.0004246]
[1750653157782,1.39024418,101460.0,101450.0,0.0004246]
[1750653157992,1.39424418,101460.0,101450.0,0.0014246]
[1750653158643,1.4040996,101460.0,101450.0,0.0014246]
[1750653159285,1.3540996,101460.0,101450.0,0.0014246]
[1750653159501,1.6899247,101460.0,101450.0,0.0014246]
[1750653159939,1.68992238,101460.0,101450.0,0.0014246]
[1750653160322,1.69977838,101460.0,101450.0,0.0014246]
[1750653160735,1.64977838,101460.0,101450.0,0.0014246]
[1750653161073,1.69977838,101460.0,101450.0,0.0014246]
[1750653161334,1.88704554,101460.0,101450.0,0.0014246]
[1750653162712,1.86860938,101460.0,101450.0,0.0014246]
[1750653162922,1.88704554,101460.0,101450.0,0.0014246]
[1750653163359,1.86733403,101460.0,101450.0,0.0014246]
[1750653163790,2.15623232,101460.0,101450.0,0.0014246]
[1750653164454,0.62779658,101440.0,101430.0,0.0321]
[1750653164658,1.02995536,101440.0,101430.0,0.0321]
[1750653165495,1.07414921,101440.0,101430.0,0.0321]
[1750653165702,1.07514921,101440.0,101430.0,0.0321]
[1750653166088,1.07514921,101440.0,101430.0,0.0331]
[1750653167581,0.78625092,101440.0,101430.0,0.0631]
[1750653167790,0.78625092,101440.0,101430.0,0.06425]
[1750653167992,0.80408097,101440.0,101430.0,0.06425]
[1750653168402,0.80408097,101440.0,101430.0,0.0631]
[1750653169844,0.78954012,101440.0,101430.0,0.0631]
[1750653171030,1.07843841,101440.0,101430.0,0.0631]
[1750653171703,1.07843841,101440.0,101430.0,0.0331]
[1750653172116,1.07843841,101440.0,101430.0,0.0656]
[1750653172595,1.07843841,101440.0,101430.0,0.0331]
[1750653173066,1.07843841,101440.0,101430.0,0.0639]
[1750653173988,0.78954012,101440.0,101430.0,0.0639]
[1750653174488,0.79777607,101440.0,101430.0,0.0639]
[1750653175320,0.80077607,101440.0,101430.0,0.0649]
[1750653175557,0.80077607,101440.0,101430.0,0.06605]
[1750653175781,0.69124073,101440.0,101430.0,0.06605]
[1750653175992,0.69124073,101440.0,101430.0,0.06505]
[1750653176171,0.69224073,101440.0,101430.0,0.06505]
[1750653176848,0.70148174,101440.0,101430.0,0.06505]
[1750653177062,0.64224073,101440.0,101430.0,0.06505]
[1750653177244,0.74191889,101440.0,101430.0,0.06505]
[1750653177447,0.72408884,101440.0,101430.0,0.06505]
[1750653177666,1.06408884,101440.0,101430.0,0.06505]
[1750653177867,0.61551055,101440.0,101430.0,0.06505]
[1750653178083,0.51583239,101440.0,101430.0,0.06505]
[1750653178905,0.17583239,101440.0,101430.0,0.06505]
[1750653181148,0.075533,101440.0,101430.0,0.08243391]
[1750653181358,0.04588,101440.0,101430.0,0.08243391]
[1750653181797,0.04588,101440.0,101430.0,0.3713322]
[1750653182220,0.04488,101440.0,101430.0,0.3713322]
[1750653182435,0.04488,101440.0,101430.0,0.08243391]
[1750653182657,0.04488,101440.0,101430.0,0.08343391]
[1750653182884,0.04188,101440.0,101430.0,0.08243391]
[1750653183096,0.04388,101440.0,101430.0,0.08243391]
[1750653184636,0.04388,101440.0,101430.0,0.3713322]
[1750653185030,0.04388,101440.0,101430.0,0.08243391]
[1750653192925,0.04388,101440.0,101430.0,0.3713322]
[1750653200553,0.04388,101440.0,101430.0,0.08243391]
[1750653202546,0.04388,101440.0,101430.0,0.3713322]
[1750653205770,0.04388,101440.0,101430.0,0.08243391]
[1750653205985,0.07694106,101440.0,101430.0,0.08243391]
[1750653206167,0.36583935,101440.0,101430.0,0.06505]
[1750653206535,0.07694106,101440.0,101430.0,0.06505]
[1750653208376,0.36583935,101440.0,101430.0,0.06505]
[1750653209187,0.07694106,101440.0,101430.0,0.06505]
[1750653211854,0.46613874,101440.0,101430.0,0.0639]
[1750653212347,0.46613874,101440.0,101430.0,0.06506]
[1750653212567,0.49578774,101440.0,101430.0,0.06506]
[1750653212781,0.20688945,101440.0,101430.0,0.06506]
[1750653213228,0.17724045,101440.0,101430.0,0.06506]
[1750653214146,0.07694106,101440.0,101430.0,0.06506]
[1750653216818,0.04388,101440.0,101430.0,0.06506]
[1750653226217,0.33298403,101440.0,101430.0,0.06506]
[1750653230944,0.002,101440.0,101430.0,0.35416403]
[1750653231149,0.04392,101440.0,101430.0,0.35416403]
[1750653233218,0.04392,101440.0,101430.0,0.51392403]
[1750653234261,0.04192,101440.0,101430.0,0.51422403]
[1750653234472,0.08991479,101450.0,101440.0,0.06435]
[1750653234685,0.13183479,101450.0,101440.0,0.64255806]
[1750653234893,0.13183479,101450.0,101440.0,0.35345403]
[1750653235234,0.13183479,101450.0,101440.0,0.37004584]
[1750653236077,0.13183479,101450.0,101440.0,0.35345403]
[1750653236729,0.13183479,101450.0,101440.0,0.35845403]
[1750653237073,0.13283479,101450.0,101440.0,0.36145403]
[1750653237621,0.17503329,101450.0,101440.0,0.36145403]
[1750653238363,0.17503329,101450.0,101440.0,0.07235]
[1750653238568,0.13283479,101450.0,101440.0,0.07235]
[1750653240480,0.13283479,101450.0,101440.0,0.5210392]
[1750653240681,0.13283479,101450.0,101440.0,0.3613592]
[1750653240892,0.13283479,101450.0,101440.0,0.5210392]
[1750653241106,0.13129346,101450.0,101440.0,0.5210392]
[1750653244799,0.001,101450.0,101440.0,0.68347245]
[1750653245003,0.001,101450.0,101440.0,0.6980133]
[1750653245626,0.001,101450.0,101440.0,0.63587944]
[1750653245818,0.001,101450.0,101440.0,0.64573748]
[1750653247094,0.001,101450.0,101440.0,0.63587944]
[1750653247308,0.001,101450.0,101440.0,0.97587944]
[1750653249215,0.001,101450.0,101440.0,0.81619944]
[1750653249633,0.001,101450.0,101440.0,0.97587944]
[1750653249853,0.001,101450.0,101440.0,0.81619944]
[1750653250406,0.001,101450.0,101440.0,0.97591944]
[1750653251882,0.001,101450.0,101440.0,0.97587944]
[1750653254247,0.001,101450.0,101440.0,0.68683024]
[1750653254452,0.001,101450.0,101440.0,0.97583944]
[1750653255853,0.001,101450.0,101440.0,0.80165859]
[1750653256068,0.001,101450.0,101440.0,0.3613592]
[1750653256264,0.001,101450.0,101440.0,0.5209992]
[1750653261275,0.001,101450.0,101440.0,0.07235]
[1750653261502,0.001,101450.0,101440.0,0.5209592]
[1750653268481,0.001,101450.0,101440.0,0.73609883]
[1750653268693,0.001,101450.0,101440.0,0.63579944]
[1750653280692,0.001,101450.0,101440.0,0.84879944]
[1750653281875,0.001,101450.0,101440.0,0.62125859]
[1750653284120,0.001,101450.0,101440.0,0.5209592]
[1750653285925,0.001,101450.0,101440.0,0.3613592]
[1750653286151,0.001,101450.0,101440.0,0.5209192]
[1750653294108,0.08014132,101450.0,101440.0,0.07235]
[1750653294329,0.38135727,101450.0,101440.0,0.0712]
[1750653294591,0.38135727,101450.0,101440.0,0.16868]
[1750653294809,0.39855727,101450.0,101440.0,0.008]
[1750653295024,0.10954807,101450.0,101440.0,0.008]
[1750653295296,0.03040675,101450.0,101440.0,0.008]
[1750653295967,0.02940675,101450.0,101430.0,0.19408]
[1750653296201,0.0418,101440.0,101430.0,0.22728]
[1750653297580,0.0418,101440.0,101430.0,0.16076]
[1750653297774,0.3308092,101440.0,101430.0,0.002]
[1750653298031,0.0418,101440.0,101430.0,0.16276]
[1750653298286,0.07488092,101440.0,101430.0,0.005]
[1750653298498,0.36389012,101440.0,101430.0,0.002]
[1750653298923,0.36389012,101440.0,101430.0,0.005]
[1750653299338,0.36489012,101440.0,101430.0,0.009]
[1750653300212,0.07588092,101440.0,101430.0,0.009]
[1750653300446,0.0428,101440.0,101430.0,0.009]
[1750653301154,0.0428,101440.0,101430.0,0.0703]
[1750653301370,0.0428,101440.0,101430.0,0.07152]
[1750653301584,0.0428,101440.0,101430.0,0.0703]
[1750653301793,0.0428,101440.0,101430.0,0.009]
[1750653301975,0.07598092,101440.0,101430.0,0.009]
[1750653302232,0.07598092,101440.0,101430.0,0.0395]
[1750653304740,0.07598092,101440.0,101430.0,0.009]
[1750653307717,0.07598092,101440.0,101430.0,0.0401]
[1750653308412,0.07598092,101440.0,101430.0,0.0731]
[1750653308667,0.54443083,101440.0,101430.0,0.009]
[1750653309313,0.46528951,101440.0,101430.0,0.009]
[1750653310184,0.43210859,101440.0,101430.0,0.009]
[1750653314888,0.14309939,101440.0,101430.0,0.009]
[1750653315119,0.43210859,101440.0,101430.0,0.009]
[1750653316156,0.14309939,101440.0,101430.0,0.009]
[1750653316361,0.43210859,101440.0,101430.0,0.009]
[1750653317177,0.50198045,101440.0,101430.0,0.009]
[1750653317395,0.50198045,101440.0,101430.0,0.004]
[1750653317608,0.50098045,101440.0,101420.0,0.06545]
[1750653317800,0.50098045,101440.0,101430.0,0.002]
[1750653318010,0.50198045,101440.0,101430.0,0.005]
[1750653318556,0.50098045,101440.0,101430.0,0.003]
[1750653318770,0.50198045,101440.0,101430.0,0.003]
[1750653319381,0.50098045,101440.0,101430.0,0.0025]
[1750653320057,0.14209939,101440.0,101430.0,0.0025]
[1750653320264,0.43110859,101440.0,101430.0,0.0356]
[1750653320692,0.43210859,101440.0,101430.0,0.0376]
[1750653322948,0.14309939,101440.0,101430.0,0.0045]
[1750653323170,0.43210859,101440.0,101430.0,0.0045]
[1750653323390,0.43210859,101440.0,101430.0,0.0378]
[1750653323644,0.50198045,101440.0,101430.0,0.0378]
[1750653325125,0.50198045,101440.0,101430.0,0.0686]
[1750653330531,0.43528183,101440.0,101430.0,0.0686]
[1750653332832,0.26661,101450.0,101430.0,0.0686]
[1750653333072,0.81695859,101450.0,101440.0,0.0619]
[1750653333318,0.86063859,101450.0,101440.0,0.0619]
[1750653334659,0.65591859,101450.0,101440.0,0.0619]
[1750653334900,0.36690939,101450.0,101440.0,0.0619]
[1750653335130,0.86059859,101450.0,101440.0,0.0619]
[1750653335564,0.94665845,101450.0,101440.0,0.0619]
[1750653335780,0.7306492,101450.0,101440.0,0.0619]
[1750653336198,0.7306492,101450.0,101440.0,0.06315]
[1750653336436,0.44164,101450.0,101440.0,0.0619]
[1750653336653,0.7306492,101450.0,101440.0,0.06415]
[1750653338395,0.83094859,101450.0,101440.0,0.06415]
[1750653339526,1.17094859,101450.0,101440.0,0.06415]
[1750653343652,1.17094859,101450.0,101440.0,0.0629]
[1750653347442,1.20059559,101450.0,101440.0,0.0629]
[1750653352793,1.20059559,101450.0,101440.0,0.06407]
[1750653354385,1.20068852,101450.0,101440.0,0.06407]
[1750653354592,1.10038913,101450.0,101440.0,0.06407]
[1750653358105,1.10038913,101450.0,101440.0,0.0629]
[1750653361461,1.10964376,101450.0,101440.0,0.0629]
[1750653363434,1.10038913,101450.0,101440.0,0.0629]
[1750653363656,1.10964494,101450.0,101440.0,0.0629]
[1750653364090,1.20994433,101450.0,101440.0,0.0629]
[1750653365203,1.20728645,101450.0,101440.0,0.0629]
[1750653366044,1.20728646,101450.0,101440.0,0.0629]
[1750653367580,0.98295941,101450.0,101440.0,0.0629]
[1750653368947,0.98295942,101450.0,101440.0,0.0629]
[1750653369637,0.88266003,101450.0,101440.0,0.06407]
[1750653372989,0.71088496,101450.0,101440.0,0.06407]
[1750653374988,0.072527,101450.0,101440.0,0.64227426]
[1750653375443,0.072527,101450.0,101440.0,0.80275426]
[1750653375669,0.237,101460.0,101450.0,0.06434]
[1750653375670,0.27988,101460.0,101450.0,0.06434]
[1750653375891,0.27988,101460.0,101450.0,0.35344213]
[1750653376368,0.27988,101460.0,101450.0,0.06434]
[1750653376606,0.27988,101460.0,101450.0,0.43370581]
[1750653376825,0.28896338,101480.0,101450.0,0.43370581]
[1750653376826,0.04288,101480.0,101470.0,0.06334]
[1750653377529,0.04288,101480.0,101470.0,0.06234]
[1750653377978,0.31859838,101490.0,101480.0,0.03234]
[1750653377979,0.65859838,101490.0,101480.0,0.03234]
[1750653378205,1.2003714,101490.0,101470.0,0.003]
[1750653378425,0.28896338,101480.0,101470.0,0.003]
[1750653378867,0.28896338,101480.0,101460.0,0.1618]
[1750653379077,0.04288,101470.0,101460.0,0.00124]
[1750653380828,0.04288,101470.0,101460.0,0.00224]
[1750653381053,0.03318434,101470.0,101460.0,0.03224]
[1750653381287,0.33184338,101470.0,101460.0,0.06584]
[1750653381509,0.33184338,101470.0,101460.0,0.06984]
[1750653384443,0.43214277,101470.0,101460.0,0.0686]
[1750653385236,0.46178377,101470.0,101460.0,0.0686]
[1750653387523,0.46178377,101470.0,101460.0,0.06984]
[1750653388380,0.50796215,101470.0,101460.0,0.06984]
[1750653389662,0.50796215,101470.0,101460.0,0.0686]
[1750653391052,0.50796215,101470.0,101460.0,0.007]
[1750653391920,0.90196215,101470.0,101460.0,0.007]
[1750653392138,1.06248215,101470.0,101460.0,0.007]
[1750653392351,1.0723364,101470.0,101460.0,0.007]
[1750653392981,1.08219075,101470.0,101460.0,0.007]
[1750653393194,1.08219075,101470.0,101450.0,0.0619]
[1750653393195,0.34,101460.0,101450.0,0.0619]
[1750653393405,0.82956216,101460.0,101450.0,0.0619]
[1750653394282,0.54059878,101460.0,101450.0,0.0619]
[1750653394500,0.83056216,101460.0,101450.0,0.0649]
[1750653394710,0.83056216,101460.0,101450.0,0.0679]
[1750653398220,1.11952554,101460.0,101450.0,0.006]
[1750653400452,1.11952554,101460.0,101450.0,0.003]
[1750653400654,1.12838086,101460.0,101440.0,0.0627]
[1750653400837,0.73911809,101460.0,101450.0,0.001]
[1750653401231,1.17114086,101460.0,101450.0,0.001]
[1750653401444,1.20078886,101460.0,101450.0,0.001]
[1750653401853,1.25078886,101460.0,101450.0,0.003]
[1750653402235,1.26064437,101460.0,101450.0,0.003]
[1750653402437,1.27449998,101460.0,101440.0,0.0627]
[1750653402647,0.72926277,101450.0,101440.0,0.0627]
[1750653402852,0.7813804,101450.0,101440.0,0.0627]
[1750653403647,1.00636125,101450.0,101440.0,0.001]
[1750653403821,1.30317764,101450.0,101440.0,0.0024626]
[1750653404024,1.31603402,101450.0,101440.0,0.0024626]
[1750653404223,1.31703402,101450.0,101440.0,0.0024626]
[1750653404662,1.30717754,101450.0,101440.0,0.0024626]
[1750653404862,1.30717754,101450.0,101440.0,0.0014626]
[1750653405069,1.29732125,101450.0,101440.0,0.0014626]
[1750653405287,1.29332125,101450.0,101440.0,0.0034626]
[1750653405668,1.29332125,101450.0,101440.0,0.0014626]
[1750653406316,1.29432125,101450.0,101440.0,0.0014626]
[1750653407164,1.30817744,101450.0,101440.0,0.0014626]
[1750653407577,1.31803383,101450.0,101440.0,0.0014626]
[1750653407771,1.32789031,101450.0,101440.0,0.0014626]
[1750653408828,1.27789031,101450.0,101440.0,0.0014626]
[1750653409040,1.32789031,101450.0,101440.0,0.0014626]
[1750653409456,1.35754331,101450.0,101440.0,0.0014626]
[1750653409865,1.36739999,101450.0,101440.0,0.0014626]
[1750653410262,1.35754331,101450.0,101440.0,0.0014626]
[1750653410475,1.36639999,101450.0,101440.0,0.0014626]
[1750653410929,1.37725686,101450.0,101440.0,0.0014626]
[1750653411087,1.38647425,101450.0,101440.0,0.0014626]
[1750653411406,1.37661728,101450.0,101440.0,0.0014626]
[1750653411659,1.38647435,101450.0,101440.0,0.0014626]
[1750653411876,1.08765458,101450.0,101440.0,0.0014626]
[1750653412088,1.37661826,101450.0,101440.0,0.0014626]
[1750653412297,1.08765488,101450.0,101440.0,0.0014626]
[1750653412529,1.37661826,101450.0,101440.0,0.0014626]
[1750653412737,1.5737597,101450.0,101440.0,0.0014626]
[1750653413944,1.55404654,101450.0,101440.0,0.0014626]
[1750653414180,1.57247911,101450.0,101440.0,0.0014626]
[1750653414411,1.56262233,101450.0,101440.0,0.0014626]
[1750653415759,1.56262298,101450.0,101440.0,0.0014626]
[1750653415972,1.54418967,101450.0,101440.0,0.0014626]
[1750653416179,1.56262743,101450.0,101440.0,0.0014626]
[1750653416412,1.56162743,101450.0,101440.0,0.0014626]
[1750653416626,1.56762743,101450.0,101440.0,0.0004626]
[1750653417253,1.54918967,101450.0,101440.0,0.0004626]
[1750653417468,1.56762041,101450.0,101440.0,0.0004626]
[1750653417676,1.55776334,101450.0,101440.0,0.0004626]
[1750653417902,1.56076334,101450.0,101440.0,0.0014626]
[1750653421219,1.56076818,101450.0,101440.0,0.0014626]
[1750653421657,1.58438061,101450.0,101440.0,0.0014626]
[1750653421883,1.8802603,101450.0,101440.0,0.0014626]
[1750653422755,1.88026168,101450.0,101440.0,0.0014626]
[1750653423656,1.880273,101450.0,101440.0,0.0014626]
[1750653423866,0.5130114,101410.0,101400.0,0.68324132]
[1750653424074,0.60707254,101410.0,101400.0,0.68328749]
[1750653424933,0.63772954,101410.0,101400.0,0.68728749]
[1750653425287,0.63772954,101410.0,101400.0,0.69128749]
[1750653425491,0.63772954,101410.0,101400.0,0.61214617]
[1750653425492,1.02699231,101410.0,101400.0,0.61214617]
[1750653425900,1.02699231,101410.0,101400.0,0.61336617]
[1750653426808,0.73802893,101410.0,101400.0,0.61336617]
[1750653427020,1.02699231,101410.0,101400.0,0.67376617]
[1750653427223,1.04008971,101410.0,101400.0,0.67376617]
[1750653427425,1.04008971,101410.0,101400.0,0.66976617]
[1750653427635,1.03908971,101410.0,101400.0,0.66976617]
[1750653427821,1.03908971,101410.0,101400.0,0.67176617]
[1750653428086,1.03908971,101410.0,101400.0,0.66776617]
[1750653428295,1.03908971,101410.0,101400.0,0.66876617]
[1750653429984,1.21905026,101410.0,101400.0,0.66754617]
[1750653430190,1.20918989,101410.0,101400.0,0.66754617]
[1750653430370,1.21905026,101410.0,101400.0,0.66876617]
[1750653430831,1.21905016,101410.0,101400.0,0.66754617]
[1750653431042,1.19932971,101410.0,101400.0,0.66754617]
[1750653431246,1.19932971,101410.0,101400.0,0.66876617]
[1750653431450,1.20918979,101410.0,101400.0,0.66876617]
[1750653431661,1.20918979,101410.0,101400.0,0.66754617]
[1750653431873,1.21905006,101410.0,101400.0,0.66876617]
[1750653432116,1.27891053,101410.0,101400.0,0.66454617]
[1750653432338,1.30331214,101410.0,101400.0,0.60414617]
[1750653432546,1.34566138,101410.0,101400.0,0.60414617]
[1750653432749,1.34566138,101410.0,101400.0,0.60514617]
[1750653432958,1.35552204,101410.0,101400.0,0.67044617]
[1750653435264,1.30552204,101410.0,101400.0,0.67044617]
[1750653435470,1.35552204,101410.0,101400.0,0.67044617]
[1750653435737,1.3653829,101410.0,101400.0,0.67044617]
[1750653435928,1.37460538,101410.0,101400.0,0.63744617]
[1750653436136,1.38835925,101410.0,101400.0,0.66924617]
[1750653436560,1.38835925,101410.0,101400.0,0.63744617]
[1750653436770,1.14710782,101410.0,101400.0,0.63744617]
[1750653436970,1.14710782,101410.0,101400.0,0.60514617]
[1750653437600,1.1273863,101410.0,101400.0,0.60514617]
[1750653437798,1.10709326,101410.0,101400.0,0.66864617]
[1750653438001,1.11695353,101410.0,101400.0,0.66864617]
[1750653438408,1.09687308,101410.0,101400.0,0.66978617]
[1750653439168,1.10673335,101410.0,101400.0,0.66978617]
[1750653439374,1.05673335,101410.0,101400.0,0.66978617]
[1750653439599,1.09687308,101410.0,101400.0,0.66978617]
[1750653439788,1.10673316,101410.0,101400.0,0.66978617]
[1750653440282,0.82762996,101410.0,101400.0,0.66864617]
[1750653440492,1.12645371,101410.0,101400.0,0.66864617]
[1750653440705,1.13567589,101410.0,101400.0,0.66864617]
[1750653441126,0.83685214,101410.0,101400.0,0.66864617]
[1750653441345,1.10609526,101410.0,101400.0,0.66864617]
[1750653441558,1.10609526,101410.0,101400.0,0.66978617]
[1750653441772,1.05609526,101410.0,101400.0,0.66978617]
[1750653441980,0.83891441,101410.0,101400.0,0.66978617]
[1750653442212,1.04151441,101410.0,101400.0,0.66978617]
[1750653442898,0.99151441,101410.0,101400.0,0.66978617]
[1750653443103,1.04151721,101410.0,101400.0,0.66978617]
[1750653443609,0.43942771,101410.0,101400.0,0.66978617]
[1750653443823,0.48190771,101410.0,101400.0,0.66978617]
[1750653444721,0.17343639,101410.0,101400.0,0.66978617]
[1750653444948,0.51343639,101410.0,101400.0,0.66978617]
[1750653445620,0.17343639,101410.0,101400.0,0.66978617]
[1750653450123,0.04248,101410.0,101400.0,0.66978617]
[1750653452056,0.33144338,101410.0,101400.0,0.66978617]
[1750653452268,0.4016557,101410.0,101400.0,0.66978617]
[1750653452926,0.33144338,101410.0,101400.0,0.66978617]
[1750653453153,0.33144338,101410.0,101400.0,0.82986617]
[1750653455541,0.04248,101410.0,101400.0,0.82986617]
[1750653460780,0.33144338,101410.0,101400.0,0.82986617]
[1750653460991,0.04248,101410.0,101400.0,0.82986617]
[1750653461204,0.07992815,101410.0,101400.0,0.82986617]
[1750653461620,0.36889153,101410.0,101400.0,0.82986617]
[1750653462255,0.46919092,101410.0,101400.0,0.66864617]
[1750653462468,0.46919092,101410.0,101400.0,0.66978617]
[1750653463422,0.18022754,101410.0,101400.0,0.66978617]
[1750653463628,0.46919092,101410.0,101400.0,0.66978617]
[1750653465300,0.46919092,101410.0,101400.0,0.66864617]
[1750653466500,0.62927092,101410.0,101400.0,0.66864617]
[1750653467502,1.02913119,101410.0,101400.0,0.66864617]
[1750653467826,1.05998419,101410.0,101400.0,0.60514617]
[1750653468924,1.05012392,101410.0,101400.0,0.60514617]
[1750653469154,0.99893392,101410.0,101400.0,0.66854617]
[1750653469620,0.99893392,101410.0,101400.0,0.66974617]
[1750653470304,1.008794,101410.0,101400.0,0.66974617]
[1750653471041,0.99893392,101410.0,101400.0,0.66974617]
[1750653472315,1.008794,101410.0,101400.0,0.66854617]
[1750653472546,0.99893392,101410.0,101400.0,0.66854617]
[1750653473205,0.99893392,101410.0,101400.0,0.66974617]
[1750653481320,0.99893392,101410.0,101400.0,0.66854617]
[1750653484362,0.99893392,101410.0,101400.0,0.66754617]
[1750653484563,0.99893392,101410.0,101400.0,0.66954617]
[1750653485334,0.99893392,101410.0,101400.0,0.67154617]
[1750653485546,0.99893392,101410.0,101400.0,0.67274617]
[1750653493593,0.46996239,101410.0,101400.0,0.67274617]